fUSD/lending_fUSD_20250123
["ID","MTS","AMOUNT","RATE_DAILY","PERIOD"]
[350153074,1737658243338,-162.316,0.00016611,2]
[350153075,1737658243347,-2754.1057,0.00016612,2]
[350153076,1737658243356,-16205.31,0.00016612,2]
[350153077,1737658243367,-635.30203794,0.00016623,2]
[350153078,1737658243376,-1000.0,0.00016628,2]
[350153079,1737658243386,-1000.0,0.00016628,2]
[350153080,1737658243395,-1000.0,0.00016628,2]
[350153081,1737658243404,-1000.0,0.00016628,2]
[350153082,1737658243414,-1000.0,0.00016628,2]
[350153083,1737658243423,-1000.0,0.00016628,2]
[350153084,1737658243432,-1136.7765,0.00016628,2]
[350153085,1737658243442,-635.30203794,0.00016642,2]
[350153086,1737658243451,-313.98038691,0.00016646,2]
[350153087,1737658243461,-430.64066539,0.00016646,2]
[350153088,1737658243470,-635.30203794,0.00016648,2]
[350153089,1737658243480,-1723.09709849,0.00016654,2]
[350153090,1737658243490,-635.30203794,0.00016654,2]
[350153091,1737658243499,-978.36,0.000167,2]
[350153092,1737658243509,-400.0,0.000167,6]
[350153093,1737658243519,-1731.0,0.000167,2]
[350153094,1737658243528,-1000.0,0.000167,2]
[350153095,1737658243539,-12489.0792294,0.00016701,2]
[350153096,1737658243548,-4211.9671494,0.00016701,2]
[350153097,1737658243558,-500.0,0.00016709,2]
[350153098,1737658243568,-500.0,0.00016709,2]
[350153099,1737658243578,-500.0,0.00016709,2]
[350153100,1737658243588,-500.0,0.00016709,2]
[350153101,1737658243597,-500.0,0.00016709,2]
[350153102,1737658243607,-500.0,0.00016709,2]
[350153103,1737658243654,-500.0,0.00016709,2]
[350153104,1737658243664,-500.0,0.00016709,2]
[350153105,1737658243674,-500.0,0.00016709,2]
[350153106,1737658243683,-500.0,0.00016709,2]
[350153108,1737658243693,-500.0,0.00016709,2]
[350153110,1737658243702,-217.13864167,0.00016709,2]
[350153113,1737658243714,-282.86135833,0.00016709,2]
[350153115,1737658243724,-93.98535263,0.00016709,2]
[350153117,1737658243736,-406.01464737,0.00016709,2]
[350153119,1737658243745,-401.23534263,0.00016709,2]
[350153121,1737658243757,-98.76465737,0.00016709,2]
[350153123,1737658243765,-500.0,0.00016709,2]
[350153125,1737658243774,-105.66334763,0.00016709,2]
[350153128,1737658243801,-394.33665237,0.00016709,2]
[350153130,1737658243811,-500.0,0.00016709,2]
[350153133,1737658243820,-500.0,0.00016709,2]
[350153135,1737658243830,-500.0,0.00016709,2]
[350153137,1737658243839,-500.0,0.00016709,2]
[350153139,1737658243849,-500.0,0.00016709,2]
[350153141,1737658243859,-500.0,0.00016709,2]
[350153143,1737658243868,-174.15929571,0.00016709,2]
[350153156,1737658243999,-418.79381865,0.00016438,2]
[350153157,1737658244009,-500.0,0.00016438,2]
[350153158,1737658244019,-325.84070429,0.00016709,2]
[350153159,1737658244027,-208.75593996,0.00016709,2]
[350153160,1737658244040,-500.0,0.00016709,2]
[350153161,1737658244049,-500.0,0.00016709,2]
[350153162,1737658244060,-643.57,0.00016709,2]
[350153163,1737658244069,-33.73609642,0.00016709,2]
[350153164,1737658244081,-466.26390358,0.00016709,2]
[350153165,1737658244090,-307.77195615,0.00016709,2]
[350153166,1737658244106,-203.48804385,0.00016709,2]
[350153167,1737658244115,-500.0,0.00016709,2]
[350153168,1737658244125,-500.0,0.00016709,2]
[350153169,1737658244134,-578.75,0.00016709,2]
[350153170,1737658244143,-702.72,0.00016709,2]
[350153171,1737658244154,-891.12,0.00016709,2]
[350153172,1737658244163,-500.0,0.00016709,2]
[350153173,1737658244173,-244.82030447,0.00016709,2]
[350153174,1737658244183,-648.57,0.0001671,2]
[350153175,1737658244199,-858.16,0.0001671,2]
[350153176,1737658244209,-1721.26,0.0001671,2]
[350153177,1737658244218,-3616.18,0.0001671,2]
[350153178,1737658244227,-744.23,0.0001671,2]
[350153179,1737658244236,-692.0,0.0001671,2]
[350153180,1737658244246,-1379.13,0.0001671,2]
[350153181,1737658244255,-500.0,0.0001671,2]
[350153182,1737658244265,-642.7,0.0001671,2]
[350153183,1737658244274,-966.55,0.0001671,2]
[350153184,1737658244283,-1121.06,0.0001671,2]
[350153185,1737658244299,-500.0,0.0001671,2]
[350153186,1737658244308,-1000.0,0.0001671,2]
[350153187,1737658244317,-1029.24,0.0001671,2]
[350153188,1737658244327,-500.0,0.0001671,2]
[350153189,1737658244337,-1849.7,0.0001671,2]
[350153190,1737658244345,-1498.59,0.0001671,2]
[350153191,1737658244355,-500.0,0.0001671,2]
[350153192,1737658244364,-500.0,0.00016711,2]
[350153193,1737658244374,-500.0,0.00016712,2]
[350153194,1737658244383,-500.0,0.00016712,2]
[350153195,1737658244392,-500.0,0.00016712,2]
[350153196,1737658244401,-500.0,0.00016712,2]
[350153197,1737658244411,-500.0,0.00016712,2]
[350153198,1737658244421,-500.0,0.00016712,2]
[350153199,1737658244430,-500.0,0.00016712,2]
[350153200,1737658244440,-500.0,0.00016712,2]
[350153201,1737658244450,-184.79115546,0.00016712,2]
[350153202,1737658244459,-520.1892351,0.00016712,2]
[350153203,1737658244469,-500.0,0.00016712,2]
[350153204,1737658244479,-549.16457791,0.00016712,2]
[350153205,1737658244489,-500.0,0.00016712,2]
[350153206,1737658244499,-500.0,0.00016712,2]
[350153207,1737658244508,-500.0,0.00016712,2]
[350153208,1737658244518,-500.0,0.00016712,2]
[350153209,1737658244528,-500.0,0.00016712,2]
[350153210,1737658244541,-500.0,0.00016712,2]
[350153211,1737658244551,-500.0,0.00016712,2]
[350153212,1737658244560,-500.0,0.00016712,2]
[350153213,1737658244569,-500.0,0.00016712,2]
[350153214,1737658244579,-500.0,0.00016712,2]
[350153215,1737658244588,-500.0,0.00016712,2]
[350153216,1737658244597,-593.61839358,0.00016712,2]
[350153217,1737658244607,-500.0,0.00016712,2]
[350153218,1737658244617,-500.0,0.00016712,2]
[350153219,1737658244626,-500.0,0.00016712,2]
[350153220,1737658244635,-500.0,0.00016712,2]
[350153221,1737658244645,-500.0,0.00016712,2]
[350153222,1737658244655,-384.01522331,0.00016712,2]
[350153223,1737658244668,-115.98477669,0.00016712,2]
[350153224,1737658244678,-205.23522331,0.00016712,2]
[350153225,1737658244690,-294.76477669,0.00016712,2]
[350153226,1737658244699,-500.0,0.00016712,2]
[350153227,1737658244708,-236.3803771,0.00016712,2]
[350153228,1737658244718,-500.0,0.00016712,2]
[350153229,1737658244727,-500.0,0.00016712,2]
[350153230,1737658244737,-500.0,0.00016712,2]
[350153231,1737658244746,-500.0,0.00016712,2]
[350153232,1737658244756,-500.0,0.00016712,2]
[350153233,1737658244766,-500.0,0.00016712,2]
[350153234,1737658244775,-626.19538978,0.00016712,2]
[350153235,1737658244786,-500.0,0.00016712,2]
[350153236,1737658244798,-500.0,0.00016712,2]
[350153237,1737658244808,-500.0,0.00016712,2]
[350153238,1737658244818,-500.0,0.00016712,2]
[350153239,1737658244827,-500.0,0.00016712,2]
[350153240,1737658244837,-539.10171471,0.00016712,2]
[350153241,1737658244847,-500.0,0.00016712,2]
[350153242,1737658244856,-500.0,0.00016712,2]
[350153243,1737658244866,-500.0,0.00016712,2]
[350153244,1737658244875,-500.0,0.00016712,2]
[350153245,1737658244885,-500.0,0.00016712,2]
[350153246,1737658244894,-500.0,0.00016712,2]
[350153247,1737658244903,-500.0,0.00016712,2]
[350153248,1737658244913,-500.0,0.00016712,2]
[350153249,1737658244922,-500.0,0.00016712,2]
[350153250,1737658244931,-500.0,0.00016712,2]
[350153251,1737658244940,-500.0,0.00016712,2]
[350153252,1737658244949,-500.0,0.00016712,2]
[350153253,1737658244959,-500.0,0.00016712,2]
[350153254,1737658244969,-500.0,0.00016712,2]
[350153255,1737658244981,-500.0,0.00016712,2]
[350153256,1737658244992,-500.0,0.00016712,2]
[350153257,1737658245001,-500.0,0.00016712,2]
[350153258,1737658245011,-537.88,0.00016712,2]
[350153259,1737658245023,-500.0,0.00016712,2]
[350153260,1737658245033,-500.0,0.00016712,2]
[350153261,1737658245046,-500.0,0.00016712,2]
[350153262,1737658245056,-500.0,0.00016712,2]
[350153263,1737658245065,-500.0,0.00016712,2]
[350153264,1737658245075,-182.8444789,0.00016712,2]
[350153265,1737658245085,-500.0,0.00016712,2]
[350153266,1737658245094,-500.0,0.00016712,2]
[350153267,1737658245104,-500.0,0.00016712,2]
[350153268,1737658245114,-500.0,0.00016712,2]
[350153269,1737658245123,-500.0,0.00016712,2]
[350153270,1737658245135,-500.0,0.00016712,2]
[350153271,1737658245144,-500.0,0.00016712,2]
[350153272,1737658245154,-500.0,0.00016712,2]
[350153273,1737658245164,-321.7072501,0.00016712,2]
[350153274,1737658245173,-502.740867,0.00016712,2]
[350153275,1737658245183,-144.02844572,0.00016712,2]
[350153276,1737658245196,-355.97155428,0.00016712,2]
[350153277,1737658245206,-500.0,0.00016712,2]
[350153278,1737658245216,-500.0,0.00016712,2]
[350153279,1737658245226,-567.41865004,0.00016712,2]
[350153280,1737658245236,-500.0,0.00016712,2]
[350153281,1737658245246,-305.13559638,0.00016712,2]
[350153282,1737658245259,-194.86440362,0.00016712,2]
[350153283,1737658245268,-500.0,0.00016712,2]
[350153284,1737658245278,-500.0,0.00016712,2]
[350153285,1737658245291,-500.0,0.00016712,2]
[350153286,1737658245302,-418.125403,0.00016712,2]
[350153287,1737658245311,-403.17226209,0.00016712,2]
[350153288,1737658245549,-96.82773791,0.00016712,2]
[350153289,1737658245558,-500.0,0.00016712,2]
[350153290,1737658245568,-500.0,0.00016712,2]
[350153291,1737658245578,-500.0,0.00016712,2]
[350153292,1737658245587,-500.0,0.00016712,2]
[350153293,1737658245597,-500.0,0.00016712,2]
[350153294,1737658245607,-500.0,0.00016712,2]
[350153295,1737658245617,-500.0,0.00016712,2]
[350153296,1737658245626,-500.0,0.00016712,2]
[350153297,1737658245636,-500.0,0.00016712,2]
[350153298,1737658245646,-500.0,0.00016712,2]
[350153299,1737658245655,-500.0,0.00016712,2]
[350153300,1737658245665,-500.0,0.00016712,2]
[350153301,1737658245675,-288.07226209,0.00016712,2]
[350153302,1737658245687,-211.92773791,0.00016712,2]
[350153303,1737658245696,-500.0,0.00016712,2]
[350153304,1737658245706,-500.0,0.00016712,2]
[350153305,1737658245715,-500.0,0.00016712,2]
[350153306,1737658245724,-9.72226209,0.00016712,2]
[350153307,1737658245736,-490.27773791,0.00016712,2]
[350153308,1737658245746,-500.0,0.00016712,2]
[350153309,1737658245756,-500.0,0.00016712,2]
[350153310,1737658245766,-500.0,0.00016712,2]
[350153311,1737658245776,-500.0,0.00016712,2]
[350153312,1737658245787,-333.11455638,0.00016712,2]
[350153313,1737658245797,-500.0,0.00016712,2]
[350153314,1737658245806,-500.0,0.00016712,2]
[350153315,1737658245816,-500.0,0.00016712,2]
[350153316,1737658245826,-500.0,0.00016712,2]
[350153317,1737658245835,-426.61227828,0.00016712,2]
[350153318,1737658245847,-73.38772172,0.00016712,2]
[350153319,1737658245857,-500.0,0.00016712,2]
[350153320,1737658245866,-500.0,0.00016712,2]
[350153321,1737658245876,-500.0,0.00016712,2]
[350153322,1737658245885,-500.0,0.00016712,2]
[350153323,1737658245895,-160.65436866,0.00016712,2]
[350153324,1737658245905,-500.0,0.00016712,2]
[350153325,1737658245914,-500.0,0.00016712,2]
[350153326,1737658245924,-500.0,0.00016712,2]
[350153327,1737658245933,-274.4562655,0.00016712,2]
[350153328,1737658246005,-225.5437345,0.00016712,2]
[350153329,1737658246015,-500.0,0.00016712,2]
[350153330,1737658246025,-500.0,0.00016712,2]
[350153331,1737658246035,-500.0,0.00016712,2]
[350153332,1737658246045,-500.0,0.00016712,2]
[350153333,1737658246055,-206.4562655,0.00016712,2]
[350153334,1737658246068,-302.0137345,0.00016712,2]
[350153337,1737658246077,-276.56941231,0.00016712,2]
[350153340,1737658246089,-223.43058769,0.00016712,2]
[350153342,1737658246098,-245.44807471,0.00016712,2]
[350153343,1737658246109,-254.55192529,0.00016712,2]
[350153344,1737658246119,-204.89169911,0.00016712,2]
[350153345,1737658246130,-345.02679472,0.00016712,2]
[350153347,1737658246140,-233.32292128,0.00016712,2]
[350153348,1737658246155,-266.67707872,0.00016712,2]
[350153349,1737658246166,-160.74292128,0.00016712,2]
[350153350,1737658246178,-365.89707872,0.00016712,2]
[350153351,1737658246188,-147.50637878,0.00016712,2]
[350153352,1737658246200,-352.49362122,0.00016712,2]
[350153353,1737658246209,-215.43637878,0.00016712,2]
[350153354,1737658246221,-284.56362122,0.00016712,2]
[350153355,1737658246230,-398.11637878,0.00016712,2]
[350153356,1737658246242,-101.88362122,0.00016712,2]
[350153357,1737658246253,-500.0,0.00016712,2]
[350153358,1737658246262,-0.84379856,0.00016712,2]
[350153359,1737658246275,-499.15620144,0.00016712,2]
[350153360,1737658246284,-455.44379856,0.00016712,2]
[350153361,1737658246297,-44.55620144,0.00016712,2]
[350153362,1737658246306,-500.0,0.00016712,2]
[350153363,1737658246315,-220.16813856,0.00016712,2]
[350153364,1737658395035,153.66,0.000223,31]
[350153365,1737658395093,153.66,0.000223,31]
[350153366,1737658395163,153.66,0.000223,31]
[350153367,1737658395215,153.66,0.000223,31]
[350153368,1737658395278,153.66,0.000223,31]
[350153369,1737658395331,153.66,0.000223,31]
[350153370,1737658395393,153.66,0.000223,31]
[350153373,1737658921424,153.53,0.00016658,30]
[350153374,1737658921673,153.53,0.00022795,30]
[350153375,1737658999295,153.68,0.000223,31]
[350153376,1737658999344,153.68,0.000223,31]
[350153377,1737658999418,153.68,0.000223,31]
[350153378,1737658999469,153.68,0.000223,31]
[350153379,1737658999525,153.68,0.000223,31]
[350153380,1737658999590,153.68,0.000223,31]
[350153381,1737658999651,153.68,0.000223,31]
[350153382,1737659170056,-152.8,0.00010137,2]
[350153404,1737659431610,-768.1,0.00013854,2]
[350153405,1737659431619,-250.0,0.00015398,2]
[350153406,1737659431629,-250.0,0.00015434,2]
[350153407,1737659431638,-1240.33,0.00015434,2]
[350153408,1737659431648,-183.33,0.00015496,2]
[350153409,1737659431657,-546.94070991,0.00015575,2]
[350153410,1737659431669,-3835.68,0.00015575,2]
[350153411,1737659431681,-1913.36722042,0.00015575,2]
[350153412,1737659431693,-439.8200001,0.00015575,2]
[350153413,1737659431705,-959.3669999,0.00015575,2]
[350153414,1737659431716,-2727.3619961,0.00015575,2]
[350153415,1737659431728,-1770.38201522,0.00015575,2]
[350153416,1737659431741,-1138.05576468,0.00015575,2]
[350153417,1737659431827,-10569.02529367,0.00015575,2]
[350153418,1737659431838,-1191.0,0.000156,2]
[350153419,1737659431848,-250.0,0.00015679,2]
[350153420,1737659431858,-98.33240067,0.00015778,2]
[350153421,1737659431957,-883.94759933,0.00015778,2]
[350153422,1737659431966,-150.0,0.000158,2]
[350153423,1737659431975,-375.76,0.00015812,2]
[350153424,1737659431985,-160.762,0.0001587,2]
[350153425,1737659432000,-982.28,0.00015878,2]
[350153426,1737659432010,-150.0,0.00015878,2]
[350153427,1737659432019,-150.0,0.00015878,2]
[350153428,1737659432028,-981.79,0.00015878,2]
[350153429,1737659432039,-150.0,0.00015878,2]
[350153430,1737659432048,-1000.0,0.0001593,2]
[350153431,1737659432057,-462.85,0.00015932,2]
[350153432,1737659432066,-150.0,0.00015978,2]
[350153433,1737659432076,-150.0,0.00015978,2]
[350153434,1737659432086,-150.0,0.00015978,2]
[350153435,1737659432095,-150.0,0.00016078,2]
[350153436,1737659432106,-768.1,0.00016118,2]
[350153437,1737659432116,-437.86,0.000162,2]
[350153438,1737659432127,-1039.6193,0.00016338,2]
[350153439,1737659432136,-378.708,0.00016338,2]
[350153440,1737659432146,-207.9833093,0.00016377,2]
[350153441,1737659432159,-437.86,0.000164,2]
[350153442,1737659432169,-848.51,0.00016428,3]
[350153443,1737659432179,-399.76,0.00016428,2]
[350153444,1737659432190,-503.9775673,0.00016438,2]
[350153445,1737659432200,-500.0,0.00016438,2]
[350153446,1737659432211,-510.93467353,0.00016438,2]
[350153447,1737659432222,-500.0,0.00016438,2]
[350153448,1737659432233,-472.57022668,0.00016438,2]
[350153449,1737659432251,-507.84412322,0.00016438,2]
[350153450,1737659432262,-500.0,0.00016438,2]
[350153451,1737659432272,-343.8000097,0.00016438,2]
[350153453,1737659432288,-170.3298947,0.00016438,2]
[350153454,1737659432298,-259.3341937,0.00016438,2]
[350153455,1737659432308,-500.0,0.00016438,2]
[350153456,1737659432318,-375.3359116,0.00016438,2]
[350153457,1737659432348,-124.6640884,0.00016438,2]
[350153458,1737659432358,-507.09957511,0.00016438,2]
[350153459,1737659432369,-609.48016126,0.00016438,2]
[350153460,1737659432379,-440.33423153,0.00016438,2]
[350153461,1737659432388,-131.3180287,0.00016438,2]
[350153462,1737659432400,-368.6819713,0.00016438,2]
[350153463,1737659432412,-210.4312178,0.00016438,2]
[350153464,1737659432424,-289.5687822,0.00016438,2]
[350153465,1737659432434,-197.6812178,0.00016438,2]
[350153466,1737659432446,-302.3187822,0.00016438,2]
[350153467,1737659432455,-500.0,0.00016438,2]
[350153468,1737659432465,-500.0,0.00016438,2]
[350153469,1737659432474,-500.0,0.00016438,2]
[350153470,1737659432484,-500.0,0.00016438,2]
[350153471,1737659432500,-500.0,0.00016438,2]
[350153472,1737659432510,-500.0,0.00016438,2]
[350153473,1737659432520,-500.0,0.00016438,2]
[350153474,1737659432530,-286.03824705,0.00016438,2]
[350153475,1737659432548,-213.96175295,0.00016438,2]
[350153476,1737659432559,-500.0,0.00016438,2]
[350153477,1737659432569,-500.0,0.00016438,2]
[350153478,1737659432579,-500.0,0.00016438,2]
[350153479,1737659432588,-500.0,0.00016438,2]
[350153480,1737659432598,-505.18478855,0.00016438,2]
[350153481,1737659432607,-500.0,0.00016438,2]
[350153482,1737659432617,-500.0,0.00016438,2]
[350153483,1737659432626,-500.0,0.00016438,2]
[350153484,1737659432635,-500.0,0.00016438,2]
[350153485,1737659432645,-500.0,0.00016438,2]
[350153486,1737659432654,-255.9157164,0.00016438,2]
[350153487,1737659432663,-500.0,0.00016438,2]
[350153488,1737659432674,-500.0,0.00016438,2]
[350153489,1737659432683,-500.0,0.00016438,2]
[350153490,1737659432692,-500.0,0.00016438,2]
[350153491,1737659432703,-500.0,0.00016438,2]
[350153492,1737659432712,-500.0,0.00016438,2]
[350153493,1737659432722,-500.0,0.00016438,2]
[350153494,1737659432732,-500.0,0.00016438,2]
[350153495,1737659432744,-500.0,0.00016438,2]
[350153496,1737659432753,-500.0,0.00016438,2]
[350153497,1737659432763,-281.16964458,0.00016438,2]
[350153500,1737659437531,-218.83035542,0.00016438,2]
[350153501,1737659437541,-500.0,0.00016438,2]
[350153502,1737659437550,-500.0,0.00016438,2]
[350153503,1737659437560,-500.0,0.00016438,2]
[350153504,1737659437570,-500.0,0.00016438,2]
[350153505,1737659437749,-500.0,0.00016438,2]
[350153506,1737659437761,-500.0,0.00016438,2]
[350153507,1737659437772,-500.0,0.00016438,2]
[350153508,1737659437783,-500.0,0.00016438,2]
[350153509,1737659437793,-500.0,0.00016438,2]
[350153510,1737659437804,-282.05953456,0.00016438,2]
[350153511,1737659437817,-217.94046544,0.00016438,2]
[350153512,1737659437827,-205.83121634,0.00016438,2]
[350153513,1737659437839,-294.16878366,0.00016438,2]
[350153514,1737659437849,-429.83125134,0.00016438,2]
[350153515,1737659437861,-70.16874866,0.00016438,2]
[350153517,1737659437871,-500.0,0.00016438,2]
[350153519,1737659437880,-500.0,0.00016438,2]
[350153520,1737659437890,-113.33124734,0.00016438,2]
[350153521,1737659437913,-389.19831545,0.00016438,2]
[350153523,1737659437922,-500.0,0.00016438,2]
[350153525,1737659437931,-500.0,0.00016438,2]
[350153527,1737659437941,-332.13976503,0.00016438,2]
[350153529,1737659437951,-500.0,0.00016438,2]
[350153531,1737659437960,-500.0,0.00016438,2]
[350153533,1737659437970,-500.0,0.00016438,2]
[350153535,1737659437979,-500.0,0.00016438,2]
[350153537,1737659437988,-500.0,0.00016438,2]
[350153538,1737659438001,-500.0,0.00016438,2]
[350153540,1737659438011,-500.0,0.00016438,2]
[350153542,1737659438020,-254.78307048,0.00016438,2]
[350153544,1737659438030,-500.0,0.00016438,2]
[350153546,1737659438039,-500.0,0.00016438,2]
[350153548,1737659438048,-500.0,0.00016438,2]
[350153550,1737659438057,-500.0,0.00016438,2]
[350153552,1737659438066,-481.00440649,0.00016438,2]
[350153554,1737659438076,-500.0,0.00016438,2]
[350153556,1737659438085,-500.0,0.00016438,2]
[350153558,1737659438094,-500.0,0.00016438,2]
[350153560,1737659438103,-500.0,0.00016438,2]
[350153562,1737659438113,-500.0,0.00016438,2]
[350153564,1737659438122,-500.0,0.00016438,2]
[350153566,1737659438132,-500.0,0.00016438,2]
[350153568,1737659438141,-500.0,0.00016438,2]
[350153570,1737659438151,-200.85309505,0.00016438,2]
[350153572,1737659438160,-342.0213475,0.00016438,2]
[350153574,1737659438173,-157.9786525,0.00016438,2]
[350153576,1737659438182,-500.0,0.00016438,2]
[350153578,1737659438192,-500.0,0.00016438,2]
[350153580,1737659438201,-500.0,0.00016438,2]
[350153582,1737659438210,-500.0,0.00016438,2]
[350153584,1737659438220,-500.0,0.00016438,2]
[350153586,1737659438229,-500.0,0.00016438,2]
[350153588,1737659438239,-500.0,0.00016438,2]
[350153590,1737659438251,-500.0,0.00016438,2]
[350153592,1737659438260,-500.0,0.00016438,2]
[350153594,1737659438269,-202.56512667,0.00016438,2]
[350153596,1737659438278,-500.0,0.00016438,2]
[350153598,1737659438287,-500.0,0.00016438,2]
[350153600,1737659438296,-500.0,0.00016438,2]
[350153602,1737659438306,-500.0,0.00016438,2]
[350153604,1737659438315,-500.0,0.00016438,2]
[350153605,1737659438324,-500.0,0.00016438,2]
[350153607,1737659438334,-500.0,0.00016438,2]
[350153609,1737659438344,-500.0,0.00016438,2]
[350153611,1737659438354,-500.0,0.00016438,2]
[350153613,1737659438364,-500.0,0.00016438,2]
[350153615,1737659438374,-500.0,0.00016438,2]
[350153617,1737659438384,-500.0,0.00016438,2]
[350153619,1737659438393,-500.0,0.00016438,2]
[350153621,1737659438403,-500.0,0.00016438,2]
[350153623,1737659438414,-500.0,0.00016438,2]
[350153625,1737659438423,-500.0,0.00016438,2]
[350153627,1737659438434,-500.0,0.00016438,2]
[350153629,1737659438443,-500.0,0.00016438,2]
[350153631,1737659438453,-500.0,0.00016438,2]
[350153633,1737659438462,-500.0,0.00016438,2]
[350153635,1737659438473,-500.0,0.00016438,2]
[350153637,1737659438483,-500.0,0.00016438,2]
[350153639,1737659438492,-500.0,0.00016438,2]
[350153641,1737659438505,-500.0,0.00016438,2]
[350153643,1737659438515,-500.0,0.00016438,2]
[350153645,1737659438524,-500.0,0.00016438,2]
[350153647,1737659438534,-500.0,0.00016438,2]
[350153649,1737659438543,-500.0,0.00016438,2]
[350153651,1737659438552,-500.0,0.00016438,2]
[350153653,1737659438563,-500.0,0.00016438,2]
[350153655,1737659438572,-500.0,0.00016438,2]
[350153657,1737659438583,-500.0,0.00016438,2]
[350153659,1737659438592,-500.0,0.00016438,2]
[350153661,1737659438602,-504.79404652,0.00016438,2]
[350153663,1737659438611,-500.0,0.00016438,2]
[350153665,1737659438622,-500.0,0.00016438,2]
[350153667,1737659438631,-500.0,0.00016438,2]
[350153669,1737659438641,-500.0,0.00016438,2]
[350153671,1737659438650,-500.0,0.00016438,2]
[350153673,1737659438659,-506.15971135,0.00016438,2]
[350153675,1737659438669,-500.0,0.00016438,2]
[350153677,1737659438678,-500.0,0.00016438,2]
[350153679,1737659438687,-500.0,0.00016438,2]
[350153681,1737659438697,-500.0,0.00016438,2]
[350153683,1737659438706,-501.55245874,0.00016438,2]
[350153685,1737659438715,-500.0,0.00016438,2]
[350153687,1737659438725,-500.0,0.00016438,2]
[350153689,1737659438734,-500.0,0.00016438,2]
[350153691,1737659438743,-500.0,0.00016438,2]
[350153693,1737659438755,-500.0,0.00016438,2]
[350153695,1737659438765,-500.0,0.00016438,2]
[350153697,1737659438774,-500.0,0.00016438,2]
[350153699,1737659438783,-500.0,0.00016438,2]
[350153701,1737659438793,-500.0,0.00016438,2]
[350153703,1737659438802,-500.0,0.00016438,2]
[350153705,1737659438811,-500.0,0.00016438,2]
[350153707,1737659438821,-249.47323913,0.00016438,2]
[350153709,1737659438835,-250.52676087,0.00016438,2]
[350153711,1737659438844,-500.0,0.00016438,2]
[350153713,1737659438854,-500.0,0.00016438,2]
[350153715,1737659438863,-254.53454176,0.00016438,2]
[350153717,1737659438872,-227.36189352,0.00016438,2]
[350153721,1737659438899,-272.63810648,0.00016438,2]
[350153723,1737659438909,-500.0,0.00016438,2]
[350153725,1737659438919,-454.57584046,0.00016438,2]
[350153727,1737659438931,-45.42415954,0.00016438,2]
[350153729,1737659438940,-264.81594751,0.00016438,2]
[350153732,1737659438965,-235.18405249,0.00016438,2]
[350153734,1737659438974,-500.0,0.00016438,2]
[350153736,1737659438984,-500.0,0.00016438,2]
[350153738,1737659438993,-500.0,0.00016438,2]
[350153740,1737659439006,-158.39906863,0.00016438,2]
[350153743,1737659439017,-341.60093137,0.00016438,2]
[350153745,1737659439027,-500.0,0.00016438,2]
[350153747,1737659439036,-500.0,0.00016438,2]
[350153749,1737659439046,-500.0,0.00016438,2]
[350153750,1737659439055,-258.43500502,0.00016438,2]
[350153752,1737659439065,-500.0,0.00016438,2]
[350153754,1737659439074,-54.95906361,0.00016438,2]
[350153757,1737659439085,-445.04093639,0.00016438,2]
[350153759,1737659439095,-500.0,0.00016438,2]